[Event "Early-Titled-Tuesday-Blitz-July-09-2024"]
[Site "Chess.com"]
[Date "2024.07.09"]
[Round "8"]
[White "noblerone"]
[Black "SujanaLohani"]
[Result "1-0"]
[WhiteElo "2506"]
[BlackElo "2359"]
[TimeControl "180+1"]
[EndTime "9:30:54 PDT"]
[Termination "noblerone won by checkmate"]

1. d4 {[%clk 0:03:00.6]} 1... Nf6 {[%clk 0:01:19.6]} 2. Nf3 {[%clk 0:02:57.5]}
2... g6 {[%clk 0:01:19.8]} 3. Bg5 {[%clk 0:02:57]} 3... Bg7 {[%clk 0:01:20.1]}
4. Nbd2 {[%clk 0:02:57]} 4... O-O {[%clk 0:01:20.4]} 5. c3 {[%clk 0:02:54]} 5...
d5 {[%clk 0:01:20.7]} 6. e3 {[%clk 0:02:50.7]} 6... c5 {[%clk 0:01:21.1]} 7. Be2
{[%clk 0:02:44.5]} 7... Nc6 {[%clk 0:01:21.5]} 8. O-O {[%clk 0:02:43.7]} 8... h6
{[%clk 0:01:20.3]} 9. Bh4 {[%clk 0:02:35.8]} 9... g5 {[%clk 0:01:20.2]} 10. Bg3
{[%clk 0:02:35.7]} 10... Ne4 {[%clk 0:01:19.2]} 11. Nxe4 {[%clk 0:02:06.6]}
11... dxe4 {[%clk 0:01:17.9]} 12. Nd2 {[%clk 0:02:06.6]} 12... f5 {[%clk
0:01:16.8]} 13. dxc5 {[%clk 0:01:57.6]} 13... e5 {[%clk 0:01:16]} 14. f3 {[%clk
0:01:33.2]} 14... f4 {[%clk 0:01:15.2]} 15. Bf2 {[%clk 0:01:33.4]} 15... exf3
{[%clk 0:01:13.6]} 16. Bxf3 {[%clk 0:01:27.4]} 16... Qe7 {[%clk 0:01:11.6]} 17.
e4 {[%clk 0:01:18.9]} 17... Be6 {[%clk 0:01:05.6]} 18. Bg4 {[%clk 0:01:09.5]}
18... Rad8 {[%clk 0:01:05.4]} 19. Bxe6+ {[%clk 0:01:08.6]} 19... Qxe6 {[%clk
0:01:06.3]} 20. Qe2 {[%clk 0:01:09.2]} 20... g4 {[%clk 0:01:06.3]} 21. Qc4
{[%clk 0:01:02.5]} 21... Rfe8 {[%clk 0:00:53.5]} 22. Qxe6+ {[%clk 0:00:59.7]}
22... Rxe6 {[%clk 0:00:52.9]} 23. Rad1 {[%clk 0:01:00.6]} 23... h5 {[%clk
0:00:40]} 24. Bh4 {[%clk 0:00:58.6]} 24... Bf6 {[%clk 0:00:26.1]} 25. Bxf6
{[%clk 0:00:54.7]} 25... Rxf6 {[%clk 0:00:27]} 26. Nc4 {[%clk 0:00:54.3]} 26...
Rff8 {[%clk 0:00:27.2]} 27. Rd6 {[%clk 0:00:53.4]} 27... Rde8 {[%clk 0:00:15.3]}
28. Rfd1 {[%clk 0:00:51.9]} 28... f3 {[%clk 0:00:15.1]} 29. Rf1 {[%clk
0:00:48.6]} 29... fxg2 {[%clk 0:00:14.9]} 30. Kxg2 {[%clk 0:00:47.2]} 30... Rxf1
{[%clk 0:00:14.2]} 31. Kxf1 {[%clk 0:00:48.1]} 31... Rf8+ {[%clk 0:00:14.5]} 32.
Kg2 {[%clk 0:00:47.8]} 32... Rf4 {[%clk 0:00:15]} 33. Nd2 {[%clk 0:00:41.9]}
33... h4 {[%clk 0:00:13.8]} 34. Rd7 {[%clk 0:00:39.8]} 34... Rf7 {[%clk
0:00:11.6]} 35. Rxf7 {[%clk 0:00:33.3]} 35... Kxf7 {[%clk 0:00:12.5]} 36. h3
{[%clk 0:00:34]} 36... g3 {[%clk 0:00:11.3]} 37. Nf3 {[%clk 0:00:34]} 37... Na5
{[%clk 0:00:10]} 38. b3 {[%clk 0:00:31.7]} 38... Kf6 {[%clk 0:00:07.3]} 39. Nxh4
{[%clk 0:00:31.4]} 39... b6 {[%clk 0:00:07.6]} 40. cxb6 {[%clk 0:00:30.8]} 40...
axb6 {[%clk 0:00:08.5]} 41. Kxg3 {[%clk 0:00:30.9]} 41... Nb7 {[%clk 0:00:08.2]}
42. Kf3 {[%clk 0:00:29.8]} 42... Nc5 {[%clk 0:00:08.7]} 43. Ke3 {[%clk 0:00:29]}
43... b5 {[%clk 0:00:06.6]} 44. Nf3 {[%clk 0:00:27.7]} 44... Ne6 {[%clk
0:00:06.7]} 45. a4 {[%clk 0:00:27]} 45... bxa4 {[%clk 0:00:03.6]} 46. bxa4
{[%clk 0:00:27.9]} 46... Nc5 {[%clk 0:00:03.5]} 47. a5 {[%clk 0:00:27.9]} 47...
Na6 {[%clk 0:00:03.6]} 48. Nd2 {[%clk 0:00:26.8]} 48... Nc5 {[%clk 0:00:04.5]}
49. Nc4 {[%clk 0:00:24.6]} 49... Na6 {[%clk 0:00:05.4]} 50. h4 {[%clk
0:00:24.2]} 50... Nc5 {[%clk 0:00:05.8]} 51. h5 {[%clk 0:00:24]} 51... Kg5
{[%clk 0:00:04.6]} 52. Nxe5 {[%clk 0:00:24.2]} 52... Kxh5 {[%clk 0:00:05.5]} 53.
Nd3 {[%clk 0:00:23]} 53... Na6 {[%clk 0:00:04.4]} 54. Kd4 {[%clk 0:00:23]} 54...
Kg5 {[%clk 0:00:03.3]} 55. Nb4 {[%clk 0:00:23.1]} 55... Nc7 {[%clk 0:00:02.3]}
56. a6 {[%clk 0:00:22.7]} 56... Nb5+ {[%clk 0:00:02.6]} 57. Kc4 {[%clk
0:00:21.9]} 57... Nc7 {[%clk 0:00:03.1]} 58. Kc5 {[%clk 0:00:21.7]} 58... Na8
{[%clk 0:00:01.1]} 59. Kc6 {[%clk 0:00:21.7]} 59... Kf4 {[%clk 0:00:01.4]} 60.
Kb7 {[%clk 0:00:22]} 60... Kxe4 {[%clk 0:00:02.2]} 61. Kxa8 {[%clk 0:00:22.5]}
61... Ke5 {[%clk 0:00:01.8]} 62. Kb7 {[%clk 0:00:23.4]} 62... Kd6 {[%clk
0:00:02.7]} 63. a7 {[%clk 0:00:23.8]} 63... Kc5 {[%clk 0:00:03.6]} 64. a8=Q
{[%clk 0:00:23.9]} 64... Kc4 {[%clk 0:00:04.5]} 65. Qc8+ {[%clk 0:00:23.3]}
65... Kb3 {[%clk 0:00:03.5]} 66. c4 {[%clk 0:00:23.6]} 66... Kb2 {[%clk
0:00:04.4]} 67. c5 {[%clk 0:00:24.1]} 67... Ka1 {[%clk 0:00:05.3]} 68. Na6
{[%clk 0:00:24.3]} 68... Kb2 {[%clk 0:00:06.2]} 69. c6 {[%clk 0:00:24.9]} 69...
Ka3 {[%clk 0:00:07.1]} 70. c7 {[%clk 0:00:25.4]} 70... Ka4 {[%clk 0:00:08]} 71.
Qf5 {[%clk 0:00:25.1]} 71... Kb3 {[%clk 0:00:08.9]} 72. Qe4 {[%clk 0:00:24.9]}
72... Ka2 {[%clk 0:00:09.8]} 73. Qe3 {[%clk 0:00:24.3]} 73... Kb1 {[%clk
0:00:10.7]} 74. Qd2 {[%clk 0:00:24.2]} 74... Ka1 {[%clk 0:00:10.5]} 75. Kb6
{[%clk 0:00:25.1]} 75... Kb1 {[%clk 0:00:11.4]} 76. Kb5 {[%clk 0:00:26]} 76...
Ka1 {[%clk 0:00:11.2]} 77. Kb4 {[%clk 0:00:26.9]} 77... Kb1 {[%clk 0:00:12.1]}
78. Kb3 {[%clk 0:00:27.8]} 78... Ka1 {[%clk 0:00:12.2]} 79. Qd1# {[%clk
0:00:27.8]} 1-0

[Event "Early-Titled-Tuesday-Blitz-July-09-2024"]
[Site "Chess.com"]
[Date "2024.07.09"]
[Round "8"]
[White "sanbruh"]
[Black "carloseduar100"]
[Result "0-1"]
[WhiteElo "2342"]
[BlackElo "2265"]
[TimeControl "180+1"]
[EndTime "9:30:54 PDT"]
[Termination "carloseduar100 won by checkmate"]

1. e4 {[%clk 0:02:59.9]} 1... e6 {[%clk 0:02:58]} 2. d4 {[%clk 0:02:59.6]} 2...
d5 {[%clk 0:02:56.8]} 3. Nd2 {[%clk 0:02:59.8]} 3... Nf6 {[%clk 0:02:55.5]} 4.
Bd3 {[%clk 0:02:59.3]} 4... dxe4 {[%clk 0:02:55]} 5. Nxe4 {[%clk 0:02:59.3]}
5... Nxe4 {[%clk 0:02:55.8]} 6. Bxe4 {[%clk 0:02:59.7]} 6... Be7 {[%clk
0:02:56.4]} 7. Nf3 {[%clk 0:02:59.6]} 7... Bf6 {[%clk 0:02:56.8]} 8. O-O {[%clk
0:02:59]} 8... Nd7 {[%clk 0:02:57.2]} 9. c4 {[%clk 0:02:57.9]} 9... O-O {[%clk
0:02:57.4]} 10. Be3 {[%clk 0:02:56.8]} 10... Re8 {[%clk 0:02:57.8]} 11. Re1
{[%clk 0:02:55.4]} 11... c6 {[%clk 0:02:58]} 12. Qc2 {[%clk 0:02:50.7]} 12... g6
{[%clk 0:02:57.2]} 13. Rad1 {[%clk 0:02:51.3]} 13... Qc7 {[%clk 0:02:53.4]} 14.
b3 {[%clk 0:02:45.7]} 14... e5 {[%clk 0:02:53.7]} 15. d5 {[%clk 0:02:42.9]}
15... cxd5 {[%clk 0:02:54.6]} 16. Bxd5 {[%clk 0:02:34.1]} 16... Nb6 {[%clk
0:02:52.8]} 17. c5 {[%clk 0:02:18.5]} 17... Nxd5 {[%clk 0:02:52.1]} 18. Rxd5
{[%clk 0:02:19.4]} 18... Bg4 {[%clk 0:02:51.6]} 19. Ng5 {[%clk 0:02:12.4]} 19...
Kg7 {[%clk 0:02:46.1]} 20. f3 {[%clk 0:02:06.8]} 20... h6 {[%clk 0:02:32.3]} 21.
Ne4 {[%clk 0:02:02.6]} 21... Be6 {[%clk 0:02:30.4]} 22. Nxf6 {[%clk 0:01:46.4]}
22... Kxf6 {[%clk 0:02:28.4]} 23. Rd6 {[%clk 0:01:45.6]} 23... Kg7 {[%clk
0:02:24.7]} 24. Qc3 {[%clk 0:01:40.6]} 24... Bf5 {[%clk 0:02:12.5]} 25. Bf4
{[%clk 0:01:32.1]} 25... f6 {[%clk 0:02:01.3]} 26. Be3 {[%clk 0:01:27.6]} 26...
Rad8 {[%clk 0:02:00.1]} 27. Red1 {[%clk 0:01:27.2]} 27... b6 {[%clk 0:01:56.3]}
28. b4 {[%clk 0:01:25.1]} 28... a5 {[%clk 0:01:53.3]} 29. a3 {[%clk 0:01:24.4]}
29... axb4 {[%clk 0:01:53.3]} 30. axb4 {[%clk 0:01:23.1]} 30... bxc5 {[%clk
0:01:53.9]} 31. bxc5 {[%clk 0:01:22.2]} 31... Rxd6 {[%clk 0:01:52.7]} 32. Rxd6
{[%clk 0:01:21.4]} 32... Rd8 {[%clk 0:01:53.2]} 33. Qd2 {[%clk 0:01:08.6]} 33...
Ra8 {[%clk 0:01:42.9]} 34. Bxh6+ {[%clk 0:01:07.4]} 34... Kf7 {[%clk 0:01:43.5]}
35. h4 {[%clk 0:01:00.8]} 35... Qxc5+ {[%clk 0:01:42.8]} 36. Be3 {[%clk
0:00:59.4]} 36... Qa5 {[%clk 0:01:35.4]} 37. Rd7+ {[%clk 0:00:48.3]} 37... Kg8
{[%clk 0:01:18.4]} 38. Qd6 {[%clk 0:00:43.8]} 38... Bxd7 {[%clk 0:01:15.8]} 39.
Qxd7 {[%clk 0:00:43.4]} 39... Qe1+ {[%clk 0:01:11.6]} 40. Kh2 {[%clk 0:00:41.8]}
40... Qxh4+ {[%clk 0:01:12.2]} 41. Kg1 {[%clk 0:00:41.7]} 41... Qe1+ {[%clk
0:01:12.9]} 42. Kh2 {[%clk 0:00:41.9]} 42... Qxe3 {[%clk 0:01:13.5]} 43. Qd5+
{[%clk 0:00:41.7]} 43... Kg7 {[%clk 0:01:09.7]} 44. Qxa8 {[%clk 0:00:42.6]}
44... f5 {[%clk 0:01:03.6]} 45. Qb7+ {[%clk 0:00:41.3]} 45... Kh6 {[%clk
0:01:03.9]} 46. Qc8 {[%clk 0:00:39.4]} 46... e4 {[%clk 0:00:47.7]} 47. Kh3
{[%clk 0:00:24.2]} 47... Qc3 {[%clk 0:00:32.7]} 48. Qf8+ {[%clk 0:00:22]} 48...
Kg5 {[%clk 0:00:26.2]} 49. Qe7+ {[%clk 0:00:19.6]} 49... Kf4 {[%clk 0:00:23.3]}
50. Qh4+ {[%clk 0:00:15]} 50... Ke3 {[%clk 0:00:22]} 51. Qg5+ {[%clk 0:00:14.7]}
51... f4 {[%clk 0:00:19.2]} 52. Qxg6 {[%clk 0:00:12.4]} 52... exf3 {[%clk
0:00:19.2]} 53. Qe6+ {[%clk 0:00:12.3]} 53... Kf2 {[%clk 0:00:18.3]} 54. Qb6+
{[%clk 0:00:11.7]} 54... Qe3 {[%clk 0:00:18.3]} 55. Qb2+ {[%clk 0:00:10.8]}
55... Qe2 {[%clk 0:00:18.3]} 56. Qd4+ {[%clk 0:00:11.2]} 56... Kf1 {[%clk
0:00:16.9]} 57. Qa1+ {[%clk 0:00:09.1]} 57... Kf2 {[%clk 0:00:15.8]} 58. Qd4+
{[%clk 0:00:08.9]} 58... Kf1 {[%clk 0:00:15.9]} 59. Qa1+ {[%clk 0:00:09]} 59...
Qe1 {[%clk 0:00:16.4]} 60. Qa6+ {[%clk 0:00:08.6]} 60... Kg1 {[%clk 0:00:16.3]}
61. Qb6+ {[%clk 0:00:08.3]} 61... f2 {[%clk 0:00:16.7]} 62. Qd4 {[%clk
0:00:05.9]} 62... Qe3+ {[%clk 0:00:16.5]} 63. Qxe3 {[%clk 0:00:05.4]} 63... fxe3
{[%clk 0:00:17.4]} 64. g4 {[%clk 0:00:06]} 64... f1=Q+ {[%clk 0:00:17.1]} 65.
Kh4 {[%clk 0:00:06.9]} 65... e2 {[%clk 0:00:17.3]} 66. Kg5 {[%clk 0:00:07.8]}
66... e1=Q {[%clk 0:00:18.1]} 67. Kh5 {[%clk 0:00:08.4]} 67... Qe5+ {[%clk
0:00:18.4]} 68. g5 {[%clk 0:00:09.3]} 68... Qf3+ {[%clk 0:00:18.7]} 69. Kh6
{[%clk 0:00:10.2]} 69... Qff4 {[%clk 0:00:18.4]} 70. Kg6 {[%clk 0:00:11.1]}
70... Qexg5+ {[%clk 0:00:18.3]} 71. Kh7 {[%clk 0:00:12]} 71... Qfh4# {[%clk
0:00:19]} 0-1

[Event "Early-Titled-Tuesday-Blitz-July-09-2024"]
[Site "Chess.com"]
[Date "2024.07.09"]
[Round "8"]
[White "GoltsevDmitry2000"]
[Black "snowlord"]
[Result "1/2-1/2"]
[WhiteElo "2747"]
[BlackElo "2912"]
[TimeControl "180+1"]
[EndTime "9:31:02 PDT"]
[Termination "Game drawn - insufficient material"]

1. e4 {[%clk 0:02:55.3]} 1... Nc6 {[%clk 0:02:59.2]} 2. Nf3 {[%clk 0:02:54.7]}
2... d6 {[%clk 0:02:58.2]} 3. Nc3 {[%clk 0:02:54.6]} 3... Nf6 {[%clk 0:02:58.7]}
4. d4 {[%clk 0:02:54.7]} 4... g6 {[%clk 0:02:58.7]} 5. h3 {[%clk 0:02:51.7]}
5... Bg7 {[%clk 0:02:58.7]} 6. Be2 {[%clk 0:02:49.3]} 6... O-O {[%clk
0:02:58.8]} 7. O-O {[%clk 0:02:49.7]} 7... a6 {[%clk 0:02:57.9]} 8. Bg5 {[%clk
0:02:49.4]} 8... h6 {[%clk 0:02:54.9]} 9. Be3 {[%clk 0:02:49.3]} 9... e6 {[%clk
0:02:55]} 10. Qd2 {[%clk 0:02:48]} 10... g5 {[%clk 0:02:51.8]} 11. Rad1 {[%clk
0:02:46]} 11... b5 {[%clk 0:02:48.5]} 12. a3 {[%clk 0:02:44.6]} 12... Bb7 {[%clk
0:02:47.6]} 13. Nh2 {[%clk 0:02:26.2]} 13... Ne7 {[%clk 0:02:42.9]} 14. Bf3
{[%clk 0:02:17.1]} 14... Ng6 {[%clk 0:02:08.3]} 15. e5 {[%clk 0:02:08.1]} 15...
Nd5 {[%clk 0:02:08]} 16. Nxd5 {[%clk 0:02:06.2]} 16... exd5 {[%clk 0:02:04.2]}
17. exd6 {[%clk 0:01:46.3]} 17... Qxd6 {[%clk 0:02:05.1]} 18. Rfe1 {[%clk
0:01:34.9]} 18... Nh4 {[%clk 0:01:41.2]} 19. Bh5 {[%clk 0:01:28.9]} 19... Rae8
{[%clk 0:01:39.3]} 20. Qb4 {[%clk 0:01:17.8]} 20... Nf5 {[%clk 0:01:30]} 21. c3
{[%clk 0:01:16.2]} 21... Qb6 {[%clk 0:01:13.5]} 22. Bc1 {[%clk 0:01:12.5]} 22...
a5 {[%clk 0:01:13.4]} 23. Qb3 {[%clk 0:01:12.6]} 23... c5 {[%clk 0:01:07.6]} 24.
dxc5 {[%clk 0:01:10.1]} 24... Qxc5 {[%clk 0:01:08.5]} 25. Bg4 {[%clk 0:01:08]}
25... d4 {[%clk 0:01:04.8]} 26. Bxf5 {[%clk 0:01:01.1]} 26... Qxf5 {[%clk
0:01:05.7]} 27. cxd4 {[%clk 0:01:00.5]} 27... Bxd4 {[%clk 0:00:55.1]} 28. Be3
{[%clk 0:00:53.1]} 28... Bg7 {[%clk 0:00:49.9]} 29. Nf1 {[%clk 0:00:45.3]} 29...
a4 {[%clk 0:00:36.6]} 30. Qb4 {[%clk 0:00:44.8]} 30... Re4 {[%clk 0:00:33.4]}
31. Qd2 {[%clk 0:00:43.7]} 31... Re6 {[%clk 0:00:31.6]} 32. f3 {[%clk
0:00:43.6]} 32... Rfe8 {[%clk 0:00:31.2]} 33. Bf2 {[%clk 0:00:43.7]} 33... Rxe1
{[%clk 0:00:30.5]} 34. Rxe1 {[%clk 0:00:44.6]} 34... Rxe1 {[%clk 0:00:30.6]} 35.
Bxe1 {[%clk 0:00:45.5]} 35... Qe5 {[%clk 0:00:24.8]} 36. Bf2 {[%clk 0:00:37.1]}
36... Qd5 {[%clk 0:00:18.3]} 37. Qe2 {[%clk 0:00:34]} 37... Bc6 {[%clk
0:00:17.4]} 38. Ne3 {[%clk 0:00:31.4]} 38... Qe6 {[%clk 0:00:17.9]} 39. Qd2
{[%clk 0:00:29.3]} 39... h5 {[%clk 0:00:16.3]} 40. Nd1 {[%clk 0:00:28.4]} 40...
g4 {[%clk 0:00:15.8]} 41. hxg4 {[%clk 0:00:27.4]} 41... hxg4 {[%clk 0:00:16.7]}
42. fxg4 {[%clk 0:00:28.3]} 42... Qxg4 {[%clk 0:00:16.5]} 43. Ne3 {[%clk
0:00:24.4]} 43... Qe4 {[%clk 0:00:14.2]} 44. Qd6 {[%clk 0:00:15.1]} 44... Bd4
{[%clk 0:00:12.2]} 45. Qg3+ {[%clk 0:00:15]} 45... Kf8 {[%clk 0:00:12.8]} 46.
Ng4 {[%clk 0:00:14.5]} 46... Bxf2+ {[%clk 0:00:08.8]} 47. Nxf2 {[%clk
0:00:14.7]} 47... Qb1+ {[%clk 0:00:07.8]} 48. Kh2 {[%clk 0:00:15.2]} 48... Qxb2
{[%clk 0:00:06.7]} 49. Qd6+ {[%clk 0:00:09.5]} 49... Kg8 {[%clk 0:00:07]} 50.
Qxc6 {[%clk 0:00:08.5]} 50... Qxf2 {[%clk 0:00:06.5]} 51. Qxb5 {[%clk 0:00:09]}
51... Qh4+ {[%clk 0:00:05.5]} 52. Kg1 {[%clk 0:00:09.3]} 52... Qd4+ {[%clk
0:00:06.2]} 53. Kh1 {[%clk 0:00:07]} 53... Qd1+ {[%clk 0:00:06.2]} 54. Kh2
{[%clk 0:00:07.4]} 54... Qd6+ {[%clk 0:00:07.1]} 55. Kh1 {[%clk 0:00:06.8]}
55... Qxa3 {[%clk 0:00:08]} 56. Qe8+ {[%clk 0:00:01.5]} 56... Kg7 {[%clk
0:00:07.6]} 57. Qe5+ {[%clk 0:00:02.1]} 57... f6 {[%clk 0:00:08.3]} 58. Qc7+
{[%clk 0:00:01.4]} 58... Kg6 {[%clk 0:00:08.9]} 59. Qc2+ {[%clk 0:00:02]} 59...
Kf7 {[%clk 0:00:08.3]} 60. Qc7+ {[%clk 0:00:02.2]} 60... Ke6 {[%clk 0:00:08.8]}
61. Qc6+ {[%clk 0:00:02.3]} 61... Ke5 {[%clk 0:00:09.3]} 62. Qc7+ {[%clk
0:00:02.2]} 62... Kf5 {[%clk 0:00:08.6]} 63. Qd7+ {[%clk 0:00:02.1]} 63... Kf4
{[%clk 0:00:08.3]} 64. Qc7+ {[%clk 0:00:02.1]} 64... Ke4 {[%clk 0:00:07.9]} 65.
Qc6+ {[%clk 0:00:02.3]} 65... Ke5 {[%clk 0:00:06.4]} 66. Qc7+ {[%clk 0:00:02.6]}
66... Qd6 {[%clk 0:00:06.2]} 67. Qa5+ {[%clk 0:00:02.4]} 67... Qd5 {[%clk
0:00:05]} 68. Qxa4 {[%clk 0:00:03.1]} 68... f5 {[%clk 0:00:04.7]} 69. Qh4 {[%clk
0:00:03.5]} 69... Qe4 {[%clk 0:00:04.1]} 70. Qxe4+ {[%clk 0:00:03.2]} 70... Kxe4
{[%clk 0:00:04.7]} 71. Kg1 {[%clk 0:00:03.5]} 71... Ke3 {[%clk 0:00:05.3]} 72.
Kf1 {[%clk 0:00:04.1]} 72... f4 {[%clk 0:00:05.6]} 73. Ke1 {[%clk 0:00:04.4]}
73... f3 {[%clk 0:00:05.6]} 74. gxf3 {[%clk 0:00:05]} 74... Kxf3 {[%clk
0:00:06.5]} 1/2-1/2

[Event "Early-Titled-Tuesday-Blitz-July-09-2024"]
[Site "Chess.com"]
[Date "2024.07.09"]
[Round "8"]
[White "Didici"]
[Black "sergoy"]
[Result "0-1"]
[WhiteElo "2755"]
[BlackElo "2942"]
[TimeControl "180+1"]
[EndTime "9:31:12 PDT"]
[Termination "sergoy won by resignation"]

1. d4 {[%clk 0:03:00]} 1... Nf6 {[%clk 0:02:59.9]} 2. Nf3 {[%clk 0:02:59.8]}
2... e6 {[%clk 0:03:00.2]} 3. c4 {[%clk 0:02:59.6]} 3... d5 {[%clk 0:02:59.7]}
4. Bg5 {[%clk 0:02:58.6]} 4... dxc4 {[%clk 0:02:59.2]} 5. e4 {[%clk 0:02:57.9]}
5... Bb4+ {[%clk 0:02:59]} 6. Nc3 {[%clk 0:02:57.3]} 6... c5 {[%clk 0:02:44.7]}
7. Bxc4 {[%clk 0:02:46.9]} 7... cxd4 {[%clk 0:02:42.1]} 8. Nxd4 {[%clk
0:02:45.2]} 8... Qa5 {[%clk 0:02:42.6]} 9. Bd2 {[%clk 0:02:44.5]} 9... O-O
{[%clk 0:02:29.3]} 10. Qe2 {[%clk 0:02:41.5]} 10... Nbd7 {[%clk 0:02:23.9]} 11.
O-O {[%clk 0:02:35.6]} 11... Ne5 {[%clk 0:01:39.9]} 12. a3 {[%clk 0:02:35.6]}
12... Qc7 {[%clk 0:01:33.2]} 13. Ba2 {[%clk 0:02:01.8]} 13... Be7 {[%clk
0:01:27.8]} 14. Rfd1 {[%clk 0:01:43.2]} 14... Bd7 {[%clk 0:01:25.5]} 15. Rac1
{[%clk 0:01:41.1]} 15... Qb8 {[%clk 0:01:13.4]} 16. f4 {[%clk 0:01:34.5]} 16...
Bc5 {[%clk 0:01:13.4]} 17. Be1 {[%clk 0:01:34.3]} 17... Nc6 {[%clk 0:01:06.3]}
18. Nb5 {[%clk 0:01:26]} 18... Bxd4+ {[%clk 0:01:02.3]} 19. Nxd4 {[%clk
0:01:25.8]} 19... Qxf4 {[%clk 0:01:02.8]} 20. Nb5 {[%clk 0:01:11.2]} 20... Rfd8
{[%clk 0:00:34.4]} 21. Nd6 {[%clk 0:01:09.5]} 21... Nd4 {[%clk 0:00:23.2]} 22.
Qf2 {[%clk 0:00:48.3]} 22... Qxd6 {[%clk 0:00:21.1]} 23. Rxd4 {[%clk 0:00:47.7]}
23... Qe7 {[%clk 0:00:15]} 24. Bb4 {[%clk 0:00:44.8]} 24... Qe8 {[%clk 0:00:15]}
25. e5 {[%clk 0:00:36.2]} 25... Nd5 {[%clk 0:00:15.2]} 26. Bd6 {[%clk
0:00:31.4]} 26... Bc6 {[%clk 0:00:15.4]} 27. Rg4 {[%clk 0:00:30.4]} 27... Ne7
{[%clk 0:00:10.3]} 28. Bb1 {[%clk 0:00:25.4]} 28... Nf5 {[%clk 0:00:08.8]} 29.
Bxf5 {[%clk 0:00:24.2]} 29... exf5 {[%clk 0:00:09]} 30. Rg5 {[%clk 0:00:20.4]}
30... Qe6 {[%clk 0:00:07.1]} 31. Rxf5 {[%clk 0:00:19.4]} 31... Re8 {[%clk
0:00:03.5]} 32. h4 {[%clk 0:00:18.5]} 32... Rad8 {[%clk 0:00:03.8]} 33. Rc3
{[%clk 0:00:17.6]} 33... Rd7 {[%clk 0:00:03.8]} 34. Rg3 {[%clk 0:00:17.4]} 34...
g6 {[%clk 0:00:03.7]} 35. Rf6 {[%clk 0:00:17.2]} 35... Qd5 {[%clk 0:00:04.1]}
36. h5 {[%clk 0:00:17.7]} 36... Qd1+ {[%clk 0:00:04.5]} 37. Kh2 {[%clk
0:00:17.1]} 37... Qxh5+ {[%clk 0:00:05]} 38. Rh3 {[%clk 0:00:17.8]} 38... Qg4
{[%clk 0:00:05.7]} 39. Rf4 {[%clk 0:00:17.9]} 39... Qg5 {[%clk 0:00:06.2]} 40.
Rfh4 {[%clk 0:00:15.4]} 40... h5 {[%clk 0:00:05.6]} 41. Rxh5 {[%clk 0:00:15.9]}
41... gxh5 {[%clk 0:00:04.7]} 42. Rg3 {[%clk 0:00:16.6]} 42... Qg6 {[%clk
0:00:03.9]} 43. Rxg6+ {[%clk 0:00:16.1]} 43... fxg6 {[%clk 0:00:04.4]} 44. Qf6
{[%clk 0:00:16.8]} 44... Kh7 {[%clk 0:00:04.4]} 45. Bc5 {[%clk 0:00:09.8]} 45...
Bd5 {[%clk 0:00:04.5]} 46. Be3 {[%clk 0:00:09.7]} 46... Be6 {[%clk 0:00:03.4]}
47. Qg5 {[%clk 0:00:09.4]} 47... Bf5 {[%clk 0:00:03.8]} 48. Qh6+ {[%clk
0:00:09.7]} 48... Kg8 {[%clk 0:00:04]} 49. Qf4 {[%clk 0:00:07.1]} 49... Rde7
{[%clk 0:00:02.9]} 50. Bd4 {[%clk 0:00:07.1]} 50... Re6 {[%clk 0:00:03.6]} 51.
Bc3 {[%clk 0:00:07.6]} 51... Rd8 {[%clk 0:00:04.1]} 52. Qe3 {[%clk 0:00:07.6]}
52... Rd3 {[%clk 0:00:04.5]} 53. Qxa7 {[%clk 0:00:07.7]} 53... h4 {[%clk
0:00:05]} 54. Qxb7 {[%clk 0:00:08.1]} 54... h3 {[%clk 0:00:04.8]} 55. Qb8+
{[%clk 0:00:08.5]} 55... Kh7 {[%clk 0:00:04.8]} 56. Qb7+ {[%clk 0:00:08.7]}
56... Kh6 {[%clk 0:00:04.7]} 57. Qb8 {[%clk 0:00:04.2]} 57... hxg2 {[%clk
0:00:03.6]} 58. Qh8+ {[%clk 0:00:04.2]} 58... Kg5 {[%clk 0:00:03.8]} 59. Kxg2
{[%clk 0:00:04.7]} 59... Kg4 {[%clk 0:00:03.1]} 60. Qh6 {[%clk 0:00:04]} 60...
Rg3+ {[%clk 0:00:03.1]} 61. Kf2 {[%clk 0:00:04]} 61... Rh3 {[%clk 0:00:03.7]}
62. Qf8 {[%clk 0:00:02.4]} 62... Rc6 {[%clk 0:00:03.3]} 63. Qd8 {[%clk
0:00:01.8]} 63... Rc4 {[%clk 0:00:03.3]} 64. Qd5 {[%clk 0:00:01.6]} 64... Rf4+
{[%clk 0:00:03.6]} 65. Ke2 {[%clk 0:00:01.5]} 65... Be4 {[%clk 0:00:03.9]} 66.
Qd7+ {[%clk 0:00:01.4]} 66... Bf5 {[%clk 0:00:04.2]} 67. Qd5 {[%clk 0:00:01.4]}
67... Re4+ {[%clk 0:00:04.8]} 68. Kf2 {[%clk 0:00:01.3]} 68... Rh2+ {[%clk
0:00:05.7]} 69. Kg1 {[%clk 0:00:01.6]} 69... Rhe2 {[%clk 0:00:06.2]} 70. e6
{[%clk 0:00:02]} 70... Rxe6 {[%clk 0:00:06.6]} 71. Qd4+ {[%clk 0:00:01.5]} 71...
R6e4 {[%clk 0:00:07.2]} 72. Qd6 {[%clk 0:00:02.1]} 72... R4e3 {[%clk 0:00:07.6]}
73. Qd4+ {[%clk 0:00:02.1]} 73... Kh5 {[%clk 0:00:07.7]} 74. Kf1 {[%clk
0:00:02.8]} 74... Re4 {[%clk 0:00:07.4]} 75. Kg1 {[%clk 0:00:03.3]} 75... Rxd4
{[%clk 0:00:07.6]} 76. Bxd4 {[%clk 0:00:04.2]} 76... Rd2 {[%clk 0:00:08.1]} 0-1